Cogmind - Beta 12 @@@ ROGUE MODE // 2023.04.04 @ 20:50:56 Player: Mr Goldstein Result: Self-destructed Performance ------------- Evolutions (2) 1000 Regions Visited (5) 1000 Robots Destroyed (34) 170 Value Destroyed (581) 581 Prototype IDs (6) 120 Alien Tech Used (0) 0 Bonus (325) 325 TOTAL SCORE: 3196 Bonus ------- Follower Combat Kills 25 Aligned with FarCom 300 Cogmind --------- Core Integrity 522/550 Matter 285/500 Energy 140/140 System Corruption 1% Temperature Cool (0) Movement Rolling (85) Location -8/Materials Parts ------- > --- POWER (1) -------- Light Deuterium Engine > --- PROPULSION (4) --- Wheel Wheel Wheel Compact Wheel > --- UTILITY (4) ------ Improved Heat Sink Large Storage Unit High-capacity Matter Pod Light Armor Plating > --- WEAPON (2) ------- Pulse Rifle Advanced EMP Blaster > --- INVENTORY (15) --- Ion Engine Light Nuclear Core Beam Rifle Beam Rifle Beam Rifle Beam Rifle Light Assault Rifle Light Assault Rifle Heavy Assault Rifle Advanced EMP Blaster Missile Launcher Field Lobotomy Kit (5) Peak State ------------ > --- POWER ------------ Ion Engine > --- PROPULSION ------- Wheel Compact Wheel > --- UTILITY ---------- Large Storage Unit High-capacity Matter Pod > --- WEAPON ----------- YOLO Cannon > --- INVENTORY -------- Light Nuclear Core Wheel Wheel Improved Heat Sink Light Armor Plating Beam Rifle Beam Rifle Beam Rifle Beam Rifle Mini Grenade Launcher Mini Grenade Launcher Mini Grenade Launcher Mini Grenade Launcher [Rating: 27] Favorites ----------- Power Ion Engine Engine Ion Engine Propulsion Wheel Wheel Wheel Utility Large Storage Unit Device Improved Heat Sink Storage Large Storage Unit Protection Light Armor Plating Weapon Light Assault Rifle Energy Gun Beam Rifle Energy Cannon YOLO Cannon Ballistic Gun Light Assault Rifle Launcher Mini Grenade Launcher Special Weapon Field Lobotomy Kit Build | -11 -10 -10 -10 -9 -8 ------- Run | Jun Mat Min Exi Min Mat Slots Evolved 4 | . . . . . 4 Power . | . . . . . . Propulsion 2 | . . . . . 2 Utility 2 | . . . . . 2 Weapon . | . . . . . . Parts Attached 42 | 5 6 10 5 3 13 Power 3 | . 1 1 . . 1 Engine 3 | . 1 1 . . 1 Core . | . . . . . . Reactor . | . . . . . . Propulsion 8 | 2 . 2 . 2 2 Treads . | . . . . . . Leg . | . . . . . . Wheel 8 | 2 . 2 . 2 2 Hover . | . . . . . . Flight . | . . . . . . Utility 5 | 1 2 . . . 2 Device 1 | . . . . . 1 Storage 3 | 1 2 . . . . Processor . | . . . . . . Hackware . | . . . . . . Protection 1 | . . . . . 1 Artifact . | . . . . . . Weapon 26 | 2 3 7 5 1 8 Energy Gun 7 | 1 . . 1 . 5 Energy Cannon 1 | . . . 1 . . Ballistic Gun 10 | 1 2 4 2 1 . Ballistic Cannon . | . . . . . . Launcher 7 | . 1 3 . . 3 Special Weapon 1 | . . . 1 . . Impact Weapon . | . . . . . . Slashing Weapon . | . . . . . . Piercing Weapon . | . . . . . . Special Melee Weapon . | . . . . . . Unidentified Prototypes 4 | . . . 3 . 1 Parts Lost 4 | . . 4 . . . Power 1 | . . 1 . . . Propulsion 2 | . . 2 . . . Utility . | . . . . . . Weapon 1 | . . 1 . . . Highest Loss Streak 3 | . . 3 . . . To Critical Strikes . | . . . . . . Average Slot Usage (%) 94 | . 90 95 98 100 99 Engine 13 | . 14 13 14 14 9 Wheel 28 | . 28 24 28 28 35 Storage 23 | . 18 28 28 28 18 Energy Gun 1 | . 1 . . . 12 Ballistic Gun 23 | . 26 23 26 28 . Launcher 1 | . . 3 . . 4 Naked Turns . | . . . . . . Heaviest Build 45 | 9 31 31 31 33 45 Greatest Support 46 | 26 26 26 26 26 46 Greatest Overweight (x) 1 | . 1 1 1 1 . Average Overweight (x) . | . . 1 1 1 . Largest Inventory Capacity 15 | 8 15 15 15 15 15 Average Capacity 14 | 7 14 15 15 15 15 Most Carried 15 | 5 15 15 15 15 14 Average Carried 12 | 2 12 13 13 14 11 Final Capacity 15 | 8 15 15 15 15 15 Final Carried 15 | 3 15 13 14 15 12 Class Distribution -------------------- 52% | Mutant 47% | Scavenger-Mutant Dominant Class ---------------- Mutant | -10/Materials Scavenger-Mutant | -10/Mines Scavenger-Mutant | -10/Exiles Scavenger-Mutant | -9/Mines Scavenger-Mutant | -8/Materials Resources | -11 -10 -10 -10 -9 -8 ----------- Run | Jun Mat Min Exi Min Mat Matter Collected 907 | 222 409 200 . 42 34 Remotely . | . . . . . . Salvage Created 770 | . 254 236 . 20 260 Parts 75 | . 34 13 . 2 26 Haulers Intercepted . | . . . . . . Recyclers Shooed 1 | . . 1 . . . Parts Field Recycled . | . . . . . . Retrieved Matter . | . . . . . . Parts Self-Destructed . | . . . . . . Prevented . | . . . . . . Kills | -11 -10 -10 -10 -9 -8 ------- Run | Jun Mat Min Exi Min Mat Combat Hostiles Destroyed 25 | . 10 6 . . 9 Guns 13 | . 7 4 . . 2 AOE 12 | . 3 2 . . 7 Classes Destroyed 8 | . 4 2 . . 2 Worker 3 | . 2 . . . 1 Builder 1 | . . . . . 1 Tunneler 2 | . . 1 . 1 . Recycler 1 | . . 1 . . . Watcher 2 | . 1 . . . 1 Swarmer 17 | . 6 3 . . 8 Grunt 7 | . 4 3 . . . Hunter 1 | . . . . . 1 Best Kill Streak 5 | . 4 5 . 1 5 Combat Bots Only 4 | . 3 3 . . 4 Max Kills in Single Turn 5 | . 2 1 . 1 5 Gunslinging . | . . . . . . Exploded 4 | . 2 1 . . 4 Melee . | . . . . . . Uniques/NPCs Destroyed . | . . . . . . Combat | -11 -10 -10 -10 -9 -8 -------- Run | Jun Mat Min Exi Min Mat Damage Taken 844 | . 346 276 . . 222 Core 152 | . 67 57 . . 28 Absorbed by Shields . | . . . . . . Core Remaining (%) 75 | 100 . . . 50 . Volleys Fired 63 | . 31 18 . 2 12 Largest 2 | . 2 2 . 2 2 Hottest 119 | . 70 50 . 43 119 Shots Fired 118 | . 60 34 . 4 20 Gun 102 | . 58 27 . 4 13 Cannon . | . . . . . . Launcher 16 | . 2 7 . . 7 Special . | . . . . . . Kinetic 83 | . 52 27 . 4 . Thermal 19 | . 6 . . . 13 Explosive 9 | . 2 7 . . . Electromagnetic 7 | . . . . . 7 Robot Hit Streak 10 | . 10 8 . 1 2 Robot Miss Streak 5 | . 4 3 . 3 5 Penetration Max . | . . . . . . Secondary Targets . | . . . . . . Shots Hit Robots 60 | . 36 19 . 1 4 Core Hits 52 | . 20 15 . 1 16 Critical Kills 1 | . 1 . . . . Critical Parts Destroyed . | . . . . . . Critical Strikes 1 | . 1 . . . . Destroy 1 | . 1 . . . . Melee Attacks . | . . . . . . Impact . | . . . . . . Slashing . | . . . . . . Piercing . | . . . . . . Sneak Attacks . | . . . . . . Combat Hostiles . | . . . . . . Follow-up Attacks . | . . . . . . Damage Inflicted 1716 | . 650 475 . 17 574 Guns 591 | . 370 128 . 17 76 Cannons . | . . . . . . Explosions 1125 | . 280 347 . . 498 Melee . | . . . . . . Ramming . | . . . . . . Kinetic 479 | . 334 128 . 17 . Thermal 189 | . 36 . . . 153 Explosive 627 | . 280 347 . . . Electromagnetic 421 | . . . . . 421 Impact . | . . . . . . Slashing . | . . . . . . Piercing . | . . . . . . Highest Corruption 3 | . 3 3 3 3 1 Average Corruption 2 | . 2 3 3 3 1 Corruption Purged . | . . . . . . Corruption Blocked . | . . . . . . Effects 21 | . 6 5 5 4 1 Message Errors 6 | . 1 3 1 . 1 Matter Fused 9 | . 3 1 1 4 . Heat Flow Errors 1 | . . . 1 . . Energy Discharges 1 | . . . 1 . . Data Loss (minor) 1 | . . 1 . . . Alerts 1 | . . . 1 . . Weapon Failures 2 | . 2 . . . . Overload Shots . | . . . . . . Overflow Damage 101 | . 37 41 . . 23 Projectiles . | . . . . . . Explosions 101 | . 37 41 . . 23 Melee . | . . . . . . Knockbacks . | . . . . . . Impact . | . . . . . . Kinetic . | . . . . . . Secondary . | . . . . . . Self-Inflicted Damage 186 | . . 107 . . 79 Shots 9 | . . 4 . . 5 Rammed . | . . . . . . Targets Rammed . | . . . . . . Kicked . | . . . . . . Crushed . | . . . . . . Highest Temperature 142 | . 54 23 142 2 12 Average Temperature 21 | . 18 12 72 1 5 Received Heat Transfer 207 | . 153 54 . . . Siege Activations . | . . . . . . Robots Corrupted . | . . . . . . Combat Hostiles . | . . . . . . Parts Fried 2 | . . . . . 2 Impact Corruptions . | . . . . . . Robots Melted . | . . . . . . Combat Hostiles . | . . . . . . Parts Melted . | . . . . . . Heat Transferred 496 | . 111 . . . 385 Parts Sabotaged . | . . . . . . Parts Stolen . | . . . . . . Parts Stripped . | . . . . . . Power Chain Reactions 2 | . . . . . 2 Missiles Intercepted . | . . . . . . Alert | -11 -10 -10 -10 -9 -8 ------- Run | Jun Mat Min Exi Min Mat Peak Influence 342 | . 193 342 . 5 299 Initial 75 | . . 75 . . 1 Average 120 | . 122 206 . . 86 Maximum Alert Level 1 | . . 1 . . 1 Low Security (%) 83 | 100 100 45 . 100 79 Level 1 16 | . . 54 . . 20 Level 2 . | . . . . . . Level 3 . | . . . . . . Level 4 . | . . . . . . Level 5 . | . . . . . . High Security . | . . . . . . Max Security . | . . . . . . Squads Dispatched 3 | . 2 . . . 1 Investigation 1 | . 1 . . . . Extermination . | . . . . . . Reinforcement 2 | . 1 . . . 1 Assault . | . . . . . . Garrison . | . . . . . . Intercept . | . . . . . . Searches Triggered . | . . . . . . Construction Impeded 1 | . . . . . 1 Haulers Reinforced . | . . . . . . Active Scanning Responses . | . . . . . . Cargo Convoy Interrupts . | . . . . . . Stealth | -11 -10 -10 -10 -9 -8 --------- Run | Jun Mat Min Exi Min Mat Distress Signals 3 | . 3 . . . . Communications Jammed . | . . . . . . Distress Signals . | . . . . . . Times Spotted 39 | . 16 11 . . 12 Peak Tracking Total 5 | . 5 5 . . 5 Tactical Retreats 4 | . 1 2 . . 1 Traps | -11 -10 -10 -10 -9 -8 ------- Run | Jun Mat Min Exi Min Mat Traps Triggered 3 | . 3 . . . . Indirectly . | . . . . . . Trap Hack Attempts . | . . . . . . Triggered . | . . . . . . Disarmed . | . . . . . . Reprogrammed . | . . . . . . Reused . | . . . . . . Traps Extracted . | . . . . . . Installed . | . . . . . . Triggered . | . . . . . . Machines | -11 -10 -10 -10 -9 -8 ---------- Run | Jun Mat Min Exi Min Mat Machines Disabled 1 | . . 1 . . . Max in Single Turn 1 | . . 1 . . . Machines Repaired . | . . . . . . Machines Sabotaged . | . . . . . . Overloaded Fab Kills . | . . . . . . Hacking | -11 -10 -10 -10 -9 -8 --------- Run | Jun Mat Min Exi Min Mat Machines Accessed 4 | . 3 . . . 1 Terminals 4 | . 3 . . . 1 Fabricators . | . . . . . . Repair Stations . | . . . . . . Recycling Units . | . . . . . . Scanalyzers . | . . . . . . Garrison Access . | . . . . . . Total Hacks 5 | . 3 . . . 2 Successful 3 | . 1 . . . 2 Failed 2 | . 2 . . . . Catastrophic 2 | . 2 . . . . Database Lockouts . | . . . . . . Manual 1 | . . . 1 . . Terminals 5 | . 3 . . . 2 Fabricators . | . . . . . . Repair Stations . | . . . . . . Recycling Units . | . . . . . . Scanalyzers . | . . . . . . Garrison Access . | . . . . . . Terminal Hacks 3 | . 1 . . . 2 Prototype ID Bank 1 | . . . . . 1 Emergency Access Points 1 | . 1 . . . . Alert Level 1 | . . . . . 1 Fabricator Hacks . | . . . . . . Repair Station Hacks . | . . . . . . Recycling Unit Hacks . | . . . . . . Scanalyzer . | . . . . . . Garrison Access Hacks . | . . . . . . Unauthorized Hacks . | . . . . . . Terminals . | . . . . . . Fabricators . | . . . . . . Repair Stations . | . . . . . . Recycling Units . | . . . . . . Scanalyzers . | . . . . . . Garrison Access . | . . . . . . Data Cores Recovered . | . . . . . . Used . | . . . . . . Hacking Detections 2 | . 2 . . . . Full Trace Events . | . . . . . . Feedback Events . | . . . . . . Feedback Blocked . | . . . . . . Robot Schematics Acquired . | . . . . . . Robots Built . | . . . . . . Authchips . | . . . . . . Time . | . . . . . . Total Robot Build Rating . | . . . . . . Part Schematics Acquired . | . . . . . . Parts Built . | . . . . . . Authchips . | . . . . . . Time . | . . . . . . Total Part Build Rating . | . . . . . . Parts Repaired . | . . . . . . Time . | . . . . . . Parts Recycled . | . . . . . . Recycled Matter . | . . . . . . Retrieved Matter . | . . . . . . Retrieved Components . | . . . . . . Parts Scanalyzed . | . . . . . . Part Schematics Acquired . | . . . . . . Parts Damaged . | . . . . . . Bothacking | -11 -10 -10 -10 -9 -8 ------------ Run | Jun Mat Min Exi Min Mat Used RIF Installer . | . . . . . . Robots Hacked . | . . . . . . Non-combat . | . . . . . . Combat . | . . . . . . Robot Hacks Applied . | . . . . . . Relay Couplers Released . | . . . . . . Fabnet Peak Effective % . | . . . . . . Robots Rewired . | . . . . . . Allies Hacked . | . . . . . . Hacks Repelled . | . . . . . . Allies | -11 -10 -10 -10 -9 -8 -------- Run | Jun Mat Min Exi Min Mat Total Allies 3 | . . 3 . . . Largest Group 3 | . . 3 3 . . Highest-Rated Group 76 | . . 76 76 . . Highest-Rated Ally 31 | . . 31 31 . . Total Orders . | . . . . . . Ally Attacks 2 | . . 2 . . . Total Damage 21 | . . 21 . . . Kills 1 | . . 1 . . . Allies Corrupted . | . . . . . . Allies Melted . | . . . . . . Intel | -11 -10 -10 -10 -9 -8 ------- Run | Jun Mat Min Exi Min Mat Robot Analysis Total . | . . . . . . Derelict Logs Recovered 1 | . . 1 . . . Drone Launches . | . . . . . . Drone Recoveries . | . . . . . . Exploration | -11 -10 -10 -10 -9 -8 ------------- Run | Jun Mat Min Exi Min Mat Turns Passed 1882 | 69 718 402 325 173 195 Spaces Moved 1370 | 70 555 254 256 108 127 Core 17 | 17 . . . . . Treads . | . . . . . . Legs . | . . . . . . Wheels 1353 | 53 555 254 256 108 127 Hover . | . . . . . . Flight . | . . . . . . Fastest Speed 50 | 50 90 105 105 105 85 Average Speed 101 | 80 104 105 105 105 85 Slowest Speed 115 | 90 105 115 105 105 85 Overloaded Moves . | . . . . . . Propulsion Burnouts . | . . . . . . Robots Hopped . | . . . . . . Cave-ins Triggered . | . . . . . . Exploration Rate (%) 36 | 3 83 51 42 27 12 Regions Visited 5 Branch Regions 3 Pre-discovered Areas . | . . . . . . Known Exits Taken . | . . . . . . Unknown Exits Taken 5 | 1 1 1 1 1 . Scrap Searched 2 | . . 1 . 1 . Spaces Dug 46 | . 13 27 . . 6 Terrain Destroyed 88 | . 23 59 . . 6 Melee . | . . . . . . Projectile . | . . . . . . AOE 88 | . 23 59 . . 6 Terrain Rammed . | . . . . . . Walls Destroyed . | . . . . . . Machines Disabled . | . . . . . . Actions | -11 -10 -10 -10 -9 -8 --------- Run | Jun Mat Min Exi Min Mat Total 1748 | 82 640 357 314 164 191 Wait 218 | . 21 74 44 49 30 Move 1365 | 69 554 253 255 107 127 Hop . | . . . . . . Pick Up 41 | 8 20 2 5 1 5 Fast Attach 1 | . . . 1 . . Attach 21 | 5 4 4 4 . 4 Detach 2 | . 2 . . . . Swap 20 | . 2 6 . 3 9 Drop 17 | . 6 . 5 2 4 Fire 63 | . 31 18 . 2 12 Melee . | . . . . . . Ram . | . . . . . . Kick . | . . . . . . Crush . | . . . . . . Escape Stasis . | . . . . . . Rewire . | . . . . . . Trap . | . . . . . . Miscellaneous . | . . . . . . Route ------- -11/Junkyard -10/Materials (discovered 3 exits: [*Mat x2] / [*Min]) -10/Mines (discovered 2 exits: [*Mat] / *Exi) -10/Exiles -9/Mines -8/Materials History --------- Turn | Location | Event 32 | -11/Junkyard | Discovered new exit (range 16) 70 | -11/Junkyard | Entered Materials 209 | -10/Materials | Discovered new exit (range 15) 303 | -10/Materials | Build established: Mutant 672 | -10/Materials | Discovered new exit (range 10) 782 | -10/Materials | Discovered new exit (range 6) 788 | -10/Materials | Entered Mines 1000 | -10/Mines | Lost 3 parts (1p1n1w) 1070 | -10/Mines | Discovered new exit (range 9) 1140 | -10/Mines | Learned Materials emergency access door positions 1170 | -10/Mines | Received a Mining Laser from a helpful Derelict 1179 | -10/Mines | Deemed a non-threat by the Exiles lab entrance 1180 | -10/Mines | Discovered new exit (range 5) 1190 | -10/Mines | Entered Exiles 1190 | -10/Exiles | Accompanied by 3 allies 1216 | -10/Exiles | Met 8R-AWN 1220 | -10/Exiles | Led the pair of lost Derelicts to a safe place 1232 | -10/Exiles | Met EX-HEX 1251 | -10/Exiles | Build established: Scavenger-Mutant 1334 | -10/Exiles | Met EX-BIN 1346 | -10/Exiles | Aligned with FarCom system 1347 | -10/Exiles | Given EX-Vault access code 1375 | -10/Exiles | Opened EX-Vault 1384 | -10/Exiles | Found Prototype Energy Gun 1386 | -10/Exiles | Identified AWS/Thermal 1389 | -10/Exiles | Found Prototype Special Weapon 1390 | -10/Exiles | Identified Field Lobotomy Kit 1396 | -10/Exiles | Found Prototype Energy Cannon 1397 | -10/Exiles | Identified YOLO Cannon 1433 | -10/Exiles | Warned to stay clear of 0b10 Research branches 1503 | -10/Exiles | Discovered new exit (range 14) 1515 | -10/Exiles | Left Exiles lab with Field Lobotomy Kit 1515 | -10/Exiles | Entered Mines 1620 | -9/Mines | Discovered new exit (range 16) 1688 | -9/Mines | Entered Materials 1688 | -8/Materials | Evolved 4 slots: Propulsion x2, Utility x2 1883 | -8/Materials | Self-destructed Last Messages --------------- 01819_ U-05 Engineer lays Concrete. 01832_ K-01 Serf collects debris. 01833_ U-05 Engineer lays Concrete. 01834_ K-01 Serf collects debris. 01835_ U-05 Engineer lays Concrete. 01842_ C-30 ARC bursts open, deploying its payload. 01842_ S-10 Pest unfolds itself. 01842_ U-05 Engineer lays Concrete. 01843_ K-01 Serf destroyed. 01843_ S-10 Pest destroyed. 01843_ Destroyed Wheel. 01843_ H-55 Commando destroyed. 01843_ Destroyed Flight Unit. 01866_ R-06 Scavenger collects Carbon-fiber Leg. 01869_ R-06 Scavenger collects Corrupted Gauss Rifle. 01873_ R-06 Scavenger collects Corrupted Lgt. Assault Rifle. 01876_ R-06 Scavenger collects Corrupted Lgt. Ion Engine. 01880_ U-05 Engineer lays Concrete. 01881_ S-10 Pest destroyed. 01882_ U-05 Engineer lays Concrete. Map ----- +----------------------------------------------------+ | ???????????????????????????????????# #???????????? | | ???????????????????????????????????# #???????????? | | ???????????????????????????????????# #???????????? | | ???????????????????????????????????# #???????????? | | ????????????????????????????????####+##########??? | | ????????????????????????????????# # #??? | | ????????????????????????????????# # #??? | | ????????????????????????????????# !! #]]] #??? | | ????????????????????????????????# !! #] ] #??? | | ????????????????????????????????# !! #]]] #??? | | ????????????????????????????????# # ] #??? | | ???????????????????????#############+######+####?? | | ???????????????????????# # #?? | | ???????????????????????# """# #?? | | ???????????????????????# ! R"# #?? | | ???????????????????????# """# #### #####?? | | ???????????????????????# # #??# #?????? | | ???????????????????????#= """ # #??# #?????? | | ????????????########???# """ + #??# #?????? | | ????????????#]]==]]#???# ! """ # #??# #?????? | | ????????????#]]==]]#???# = # #??# #?????? | | ????????????# #???########## ##?# #?????? | | ???### ###### %[ r ##### ##### #?##/##?????? | | ???# u *[* =[ [ % #?? ??????? | | ???# *%=%= #??"""??????? | | ???# %=%=! % @= #??"""??????? | | ????????############# ##/##### #???????????? | | ????????????????????## #######???????????? | | ?????????????????????# """ #?????????????????? | | ?????????????????????#[ "Y" #?????????????????? | | ?????????????????????# #?????????????????? | | ?????????????????????# """ """ #?????????????????? | | ?????????????????????# """ """ #?????????????????? | | ?????????+???????????# """ """ #?????????????????? | | ?????????????????????# #?????????????????? | | ?????????????????????#########???????????????????? | | ?????????????????????????????????????????????????? | | ?????????????????????????????????????????????????? | | ?????????????????????????????????????????????????? | | ?????????????????????????????????????????????????? | | ?????????????????????????????????????????????????? | | ?????????????????????????????????????????????????? | | ????????????????????+?+??????????????????????????? | | ?????????????????????????????????????????????????? | | ?????????????????????????????????????????????????? | | ?????????????????????????????????????????????????? | | ?????????????????????????????????????????????????? | | ?????????????????????????????????????????????????? | | ?????????????????????????????????????????????????? | | ?????????????????????????????????????????????????? | +----------------------------------------------------+ Best States ------------- Heat Dissipation 45 Energy Generation 14 Energy Capacity 250 Matter Stores 500 Matter Capacity 500 Sight Range 16 Terrain Scan Density 10 Armor Coverage 150 Evasion (%) 43 Item Schematics ----------------- None Robot Schematics ------------------ None Fabricated ------------ Nothing Alien Tech Used ----------------- None Achievements -------------- None Challenges ------------ None Game ------ Seed FlyingGuidedStabilizer Manual? 0 Play Time 00:21:15 Cumulative 69.5 hours Start 2023.04.04 @ 20:12:41 End 2023.04.04 @ 20:50:56 Sessions 1 Manual Loads 0 Difficulty Rogue Special Mode None Game No. 90 Rogue 90 Adventurer 0 Explorer 0 Win Type - Total 0 Types 0/0/0/0/0/0/0/0/0 Lore% 46 Gallery% 46 Achievement% 39 Wizard Run 0 Options --------- ASCII 0 Keyboard 0 Movement Mouse Keybinds 0 Fullscreen 1 Font 12/Smallcaps Map View 83x54 Tactical HUD 1 Map Filters NONE Filters NONE Steam 1 RUN: c4055074-8b00-4a96-83fd-7cd6854658ed